[Event "Romanian Championship Open 2025"]
[Site "Craiova"]
[Date "2025.02.21"]
[Round "7.15"]
[White "Sprincean, Lukas George"]
[Black "Gales, Randi-Ioan"]
[Result "0-1"]
[Annotator "RC"]
[ECO "B92"]
[WhiteElo "2134"]
[BlackElo "2247"]
[PlyCount "90"]
[EventDate "2025.02.12"]
[EventType "swiss"]
[EventCountry "ROU"]
[SourceTitle "playchess.com"]
[Source "ChessBase"]
[SourceQuality "1"]
[TimeControl "40/5400+30:900+30"]

1. e4 {[%emt 0:00:02]} c5 {[%emt 0:02:12]} 2. Nf3 {[%emt 0:00:03]} d6 {[%emt 0:00:22]} 3. d4 {[%emt 0:00:44]} cxd4 {[%emt 0:00:05]} 4. Nxd4 {[%emt 0:00:02]} Nf6 {[%emt 0:00:17]} 5. Nc3 {[%emt 0:00:04]} a6 {[%emt 0:00:19]} 6. Be2 {[%emt 0:03:35]} e5 {[%emt 0:02:54]} 7. Nb3 {[%emt 0:00:41]} Be6 {[%emt 0:02:01]} 8. O-O {[%emt 0:01:15]} Be7 {[%emt 0:01:25]} 9. f4 {[%emt 0:02:46]} exf4 {[%emt 0:07:10]} 10. Bxf4 {[%emt 0:00:25]} Nc6 {[%emt 0:05:43]} 11. Qd2 {[%emt 0:08:24]} d5 {[%emt 0:23:32]} 12. Rad1 {[%emt 0:24:28]} d4 {[%emt 0:07:39]} 13. Qe1 {[%emt 0:09:28]} Qb6 {[%emt 0:05:36]} 14. Qf2 {[%emt 0:00:13]} Rd8 {[%emt 0:10:49]} 15. Bf3 {[%emt 0:04:40]} O-O {[%emt 0:01:33]} 16. Kh1 {[%emt 0:03:54]} Rd7 {[%emt 0:04:07]} 17. h3 {[%emt 0:08:14]} Rfd8 {[%emt 0:00:56]} 18. Ne2 {[%emt 0:00:52]} a5 {[%emt 0:03:34]} 19. c3 {[%emt 0:13:28]} Bxb3 {[%emt 0:01:54]} 20. axb3 {[%emt 0:00:01]} Bc5 {[%emt 0:01:17]} 21. Qh4 {[%emt 0:02:06]} d3 {[%emt 0:02:02]} 22. Ng3 {[%emt 0:00:31]} Ne7 {[%emt 0:00:15]} 23. Bh5 {[%emt 0:05:19]} Bf2 {[%emt 0:04:49]} 24. Bxf7+ {[%emt 0:03:54]} Kxf7 {[%emt 0:00:54]} 25. e5 {[%emt 0:00:12]} Ng6 {[%emt 0:01:33]} 26. Qg5 {[%emt 0:00:05]} h6 {[%emt 0:00:50]} 27. Qf5 {[%emt 0:00:40]} Ne7 {[%emt 0:00:18]} 28. e6+ {[%emt 0:06:21]} Kg8 {[%emt 0:00:12]} 29. Qe5 {[%emt 0:00:07]} Rd5 {[%emt 0:03:07]} 30. Qc7 {[%emt 0:00:35]} Qxc7 {[%emt 0:00:19]} 31. Bxc7 {[%emt 0:00:01]} Bxg3 {[%emt 0:00:39]} 32. Bxg3 {[%emt 0:00:04]} d2 {[%emt 0:02:02]} 33. Bc7 {[%emt 0:00:26]} Rc8 {[%emt 0:00:16]} 34. Bb6 {[%emt 0:00:04]} Rc6 {[%emt 0:00:33]} 35. Bd4 {[%emt 0:00:11]} Ne4 {[%emt 0:01:09]} 36. Rf7 {[%emt 0:01:00]} Nf5 {[%emt 0:00:18]} 37. Rd7 {[%emt 0:00:35]} Rxd7 {[%emt 0:00:39]} 38. exd7 {[%emt 0:00:01]} Rd6 {[%emt 0:00:01]} 39. Bc5 {[%emt 0:00:28]} Rxd7 {[%emt 0:00:10]} 40. g4 {[%emt 0:00:00]} Rd5 {[%emt 0:00:00]} 41. Bb6 {[%emt 0:00:17]} Nfd6 {[%emt 0:01:00]} 42. Kg2 {[%emt 0:00:08]} Rb5 {[%emt 0:00:05]} 43. Bc7 {[%emt 0:00:10]} Rxb3 {[%emt 0:00:41]} 44. Kf3 {[%emt 0:00:18]} Rxb2 {[%emt 0:00:08]} 45. c4 {[%emt 0:00:02]} Nc3 {[%emt 0:00:12]} 0-1

[Event "Romanian Championship Open 2025"]
[Site "Craiova"]
[Date "2025.02.21"]
[Round "7.16"]
[White "Bonte, Andrei-Mihai"]
[Black "Tudoroiu, Razvan-Catalin"]
[Result "1-0"]
[Annotator "RC"]
[ECO "A44"]
[WhiteElo "2237"]
[BlackElo "2085"]
[PlyCount "89"]
[EventDate "2025.02.12"]
[EventType "swiss"]
[EventCountry "ROU"]
[SourceTitle "playchess.com"]
[Source "ChessBase"]
[SourceQuality "1"]
[TimeControl "40/5400+30:900+30"]

1. d4 {[%emt 0:05:28]} Nf6 {[%emt 0:00:09]} 2. Nf3 {[%emt 0:00:11]} c5 {[%emt 0:00:09]} 3. d5 {[%emt 0:06:14]} d6 {[%emt 0:00:46]} 4. Nc3 {[%emt 0:01:59]} e5 {[%emt 0:00:52]} 5. e4 {[%emt 0:08:28]} Be7 {[%emt 0:00:07]} 6. Bb5+ {[%emt 0:00:18]} Nbd7 {[%emt 0:00:04]} 7. a4 {[%emt 0:00:05]} O-O {[%emt 0:00:13]} 8. O-O {[%emt 0:01:31]} Ne8 {[%emt 0:00:06]} 9. g3 {[%emt 0:20:33]} g6 {[%emt 0:01:51]} 10. Ne1 {[%emt 0:00:18]} a6 {[%emt 0:04:24]} 11. Be2 {[%emt 0:02:54]} Ng7 {[%emt 0:06:52]} 12. Ng2 {[%emt 0:01:58]} f5 {[%emt 0:01:30]} 13. f3 {[%emt 0:11:16]} Nf6 {[%emt 0:02:49]} 14. Rf2 {[%emt 0:12:24]} Nfh5 {[%emt 0:11:31]} 15. exf5 {[%emt 0:01:27]} gxf5 {[%emt 0:00:38]} 16. f4 {[%emt 0:03:49]} Nf6 {[%emt 0:00:02]} 17. fxe5 {[%emt 0:07:52]} dxe5 {[%emt 0:00:05]} 18. Ne3 {[%emt 0:00:08]} Bd6 {[%emt 0:13:23]} 19. Nc4 {[%emt 0:00:28]} Qc7 {[%emt 0:03:21]} 20. Bg5 {[%emt 0:02:33]} Nfe8 {[%emt 0:02:04]} 21. Qd2 {[%emt 0:01:05]} Bd7 {[%emt 0:02:20]} 22. a5 {[%emt 0:02:34]} Rb8 {[%emt 0:06:46]} 23. Nb6 {[%emt 0:01:49]} Rf7 {[%emt 0:01:05]} 24. Raf1 {[%emt 0:00:17]} Rf8 {[%emt 0:24:50]} 25. h4 {[%emt 0:00:15]} Nf6 {[%emt 0:06:02]} 26. Nxd7 {[%emt 0:00:08]} Nxd7 {[%emt 0:01:46]} 27. h5 {[%emt 0:01:59]} Qxa5 {[%emt 0:02:24]} 28. h6 {[%emt 0:00:22]} Ne8 {[%emt 0:00:07]} 29. Rxf5 {[%emt 0:00:29]} Rxf5 {[%emt 0:00:45]} 30. Rxf5 {[%emt 0:00:02]} Qb4 {[%emt 0:02:50]} 31. Nd1 {[%emt 0:02:05]} Qe4 {[%emt 0:02:11]} 32. Qd3 {[%emt 0:00:26]} Qxd3 {[%emt 0:00:48]} 33. Bxd3 {[%emt 0:00:06]} b5 {[%emt 0:00:04]} 34. Nf2 {[%emt 0:02:21]} c4 {[%emt 0:00:22]} 35. Be2 {[%emt 0:00:09]} Nc5 {[%emt 0:00:02]} 36. Bh5 {[%emt 0:01:25]} b4 {[%emt 0:01:43]} 37. Ng4 {[%emt 0:01:03]} Ne4 {[%emt 0:00:21]} 38. Bh4 {[%emt 0:00:49]} b3 {[%emt 0:01:30]} 39. cxb3 {[%emt 0:00:15]} cxb3 {[%emt 0:00:07]} 40. Nxe5 {[%emt 0:00:00]} Bc5+ {[%emt 0:00:00]} 41. Kg2 {[%emt 0:03:24]} N8d6 {[%emt 0:01:08]} 42. Rf4 {[%emt 0:00:44]} Rb7 {[%emt 0:06:26]} 43. Nc6 {[%emt 0:02:04]} Be3 {[%emt 0:01:05]} 44. Rg4+ {[%emt 0:12:04]} Kf8 {[%emt 0:01:27]} 45. Nd8 {[%emt 0:00:26]} 1-0

[Event "Romanian Championship Open 2025"]
[Site "Craiova"]
[Date "2025.02.21"]
[Round "7.17"]
[White "Daianu, Cristian-Clement"]
[Black "Korcsek, Alexandru-David"]
[Result "1-0"]
[Annotator "ChessBase"]
[ECO "B32"]
[WhiteElo "2214"]
[BlackElo "2127"]
[PlyCount "79"]
[EventDate "2025.02.12"]
[EventType "swiss"]
[EventCountry "ROU"]
[SourceTitle "playchess.com"]
[Source "ChessBase"]
[SourceQuality "1"]
[TimeControl "40/5400+30:900+30"]

1. e4 {[%emt 0:00:04]} c5 {[%emt 0:00:08]} 2. Nf3 {[%emt 0:00:11]} Nc6 {[%emt 0:00:06]} 3. d4 {[%emt 0:00:10]} cxd4 {[%emt 0:00:14]} 4. Nxd4 {[%emt 0:00:05]} e5 {[%emt 0:00:10]} 5. Nb5 {[%emt 0:01:21]} d6 {[%emt 0:00:07]} 6. N1c3 {[%emt 0:01:55]} a6 {[%emt 0:00:16]} 7. Na3 {[%emt 0:00:15]} b5 {[%emt 0:00:15]} 8. Nd5 {[%emt 0:00:42]} Nge7 {[%emt 0:00:08]} 9. c4 {[%emt 0:04:32]} Nxd5 {[%emt 0:00:43]} 10. exd5 {[%emt 0:00:07]} Nd4 {[%emt 0:00:10]} 11. cxb5 {[%emt 0:00:12]} Bd7 {[%emt 0:00:08]} 12. bxa6 {[%emt 0:04:42]} Qa5+ {[%emt 0:00:27]} 13. Bd2 {[%emt 0:02:16]} Qxd5 {[%emt 0:00:09]} 14. Nc2 {[%emt 0:03:03]} Qe4+ {[%emt 0:08:15]} 15. Ne3 {[%emt 0:01:53]} Be7 {[%emt 0:00:28]} 16. Bc3 {[%emt 0:11:07]} Bh4 {[%emt 0:05:45]} 17. Qd3 {[%emt 0:01:18]} Nc2+ {[%emt 0:03:15]} 18. Kd2 {[%emt 0:02:28]} Qxd3+ {[%emt 0:01:51]} 19. Bxd3 {[%emt 0:00:07]} Nxa1 {[%emt 0:00:11]} 20. g3 {[%emt 0:00:37]} Bg5 {[%emt 0:08:39]} 21. Rxa1 {[%emt 0:06:41]} O-O {[%emt 0:00:49]} 22. h4 {[%emt 0:16:25]} Bxe3+ {[%emt 0:01:51]} 23. fxe3 {[%emt 0:04:00]} f5 {[%emt 0:07:54]} 24. b4 {[%emt 0:05:57]} f4 {[%emt 0:03:08]} 25. gxf4 {[%emt 0:02:11]} exf4 {[%emt 0:00:17]} 26. Bc4+ {[%emt 0:00:52]} Kh8 {[%emt 0:00:27]} 27. Rg1 {[%emt 0:00:15]} fxe3+ {[%emt 0:01:17]} 28. Ke1 {[%emt 0:00:09]} Rg8 {[%emt 0:02:04]} 29. Bxg8 {[%emt 0:07:03]} Rxg8 {[%emt 0:01:02]} 30. a7 {[%emt 0:02:11]} Bc6 {[%emt 0:02:38]} 31. b5 {[%emt 0:00:08]} Bd5 {[%emt 0:00:59]} 32. Rxg7 {[%emt 0:07:28]} Rxg7 {[%emt 0:00:34]} 33. a4 {[%emt 0:00:02]} Kg8 {[%emt 0:02:36]} 34. Bxg7 {[%emt 0:00:05]} Kf7 {[%emt 0:00:41]} 35. a5 {[%emt 0:00:34]} Ke7 {[%emt 0:00:04]} 36. a6 {[%emt 0:00:38]} Kd7 {[%emt 0:00:08]} 37. b6 {[%emt 0:00:04]} Kc8 {[%emt 0:00:08]} 38. b7+ {[%emt 0:00:07]} Bxb7 {[%emt 0:00:05]} 39. axb7+ {[%emt 0:00:04]} Kxb7 {[%emt 0:00:06]} 40. Bd4 {[%emt 0:00:00]} 1-0

[Event "Romanian Championship Open 2025"]
[Site "Craiova"]
[Date "2025.02.21"]
[Round "7.18"]
[White "Tamas, Christian-Arrydan"]
[Black "Prisacaru, Stefan-Emilian"]
[Result "0-1"]
[Annotator "ChessBase"]
[ECO "B13"]
[WhiteElo "2016"]
[BlackElo "2212"]
[PlyCount "88"]
[EventDate "2025.02.12"]
[EventType "swiss"]
[EventCountry "ROU"]
[SourceTitle "playchess.com"]
[Source "ChessBase"]
[SourceQuality "1"]
[TimeControl "40/5400+30:900+30"]

1. e4 {[%emt 0:00:04]} c6 {[%emt 0:00:34]} 2. d4 {[%emt 0:00:06]} d5 {[%emt 0:00:03]} 3. exd5 {[%emt 0:00:06]} cxd5 {[%emt 0:00:04]} 4. Bd3 {[%emt 0:00:10]} Nc6 {[%emt 0:01:20]} 5. c3 {[%emt 0:00:15]} Qc7 {[%emt 0:00:59]} 6. Na3 {[%emt 0:01:54]} a6 {[%emt 0:04:08]} 7. Nc2 {[%emt 0:00:32]} Nf6 {[%emt 0:01:55]} 8. h3 {[%emt 0:00:06]} e6 {[%emt 0:06:19]} 9. Nf3 {[%emt 0:00:26]} Bd6 {[%emt 0:03:12]} 10. O-O {[%emt 0:00:36]} O-O {[%emt 0:00:37]} 11. Re1 {[%emt 0:00:59]} Re8 {[%emt 0:03:31]} 12. Ne3 {[%emt 0:15:44]} e5 {[%emt 0:15:21]} 13. dxe5 {[%emt 0:06:23]} Nxe5 {[%emt 0:00:07]} 14. Bc2 {[%emt 0:07:15]} Nxf3+ {[%emt 0:12:10]} 15. Qxf3 {[%emt 0:00:09]} d4 {[%emt 0:01:45]} 16. cxd4 {[%emt 0:03:18]} Rxe3 {[%emt 0:00:49]} 17. Bxe3 {[%emt 0:07:07]} Qxc2 {[%emt 0:00:15]} 18. Bg5 {[%emt 0:01:54]} Be6 {[%emt 0:13:12]} 19. Bxf6 {[%emt 0:00:35]} gxf6 {[%emt 0:01:18]} 20. d5 {[%emt 0:23:41]} Bd7 {[%emt 0:01:05]} 21. Qxf6 {[%emt 0:00:10]} Qg6 {[%emt 0:00:49]} 22. Qf3 {[%emt 0:02:30]} Kh8 {[%emt 0:02:20]} 23. Re3 {[%emt 0:06:21]} Rg8 {[%emt 0:01:34]} 24. Rae1 {[%emt 0:01:35]} Bb4 {[%emt 0:04:32]} 25. Rd1 {[%emt 0:04:10]} Bc5 {[%emt 0:00:19]} 26. Rc3 {[%emt 0:03:26]} Bd6 {[%emt 0:00:20]} 27. Rc4 {[%emt 0:02:38]} Re8 {[%emt 0:01:56]} 28. Qc3+ {[%emt 0:04:37]} Be5 {[%emt 0:00:34]} 29. Qf3 {[%emt 0:01:40]} Bd6 {[%emt 0:05:45]} 30. Qc3+ {[%emt 0:05:26]} f6 {[%emt 0:00:05]} 31. Rh4 {[%emt 0:00:44]} Qg5 {[%emt 0:02:42]} 32. g3 {[%emt 0:01:15]} Rg8 {[%emt 0:09:38]} 33. Kh1 {[%emt 0:00:04]} Qf5 {[%emt 0:00:08]} 34. Qd3 {[%emt 0:00:57]} Re8 {[%emt 0:01:59]} 35. Qxf5 {[%emt 0:00:36]} Bxf5 {[%emt 0:00:04]} 36. Rd2 {[%emt 0:00:20]} Re1+ {[%emt 0:00:22]} 37. Kg2 {[%emt 0:00:08]} Be4+ {[%emt 0:01:57]} 38. f3 {[%emt 0:00:03]} Bf5 {[%emt 0:01:22]} 39. Rc4 {[%emt 0:00:25]} Bd7 {[%emt 0:01:56]} 40. a3 {[%emt 0:00:00]} Kg7 {[%emt 0:00:00]} 41. Rcc2 {[%emt 0:09:07]} Re3 {[%emt 0:07:15]} 42. h4 {[%emt 0:05:52]} Kf7 {[%emt 0:00:30]} 43. Rc4 {[%emt 0:00:12]} Rb3 {[%emt 0:01:11]} 44. Re4 {[%emt 0:02:48]} Bf5 {[%emt 0:02:10]} 0-1

[Event "Romanian Championship Open 2025"]
[Site "Craiova"]
[Date "2025.02.21"]
[Round "7.19"]
[White "Bida, Mihai-Eugen"]
[Black "Dumitrescu, Daniel"]
[Result "1/2-1/2"]
[Annotator "RC"]
[ECO "C42"]
[WhiteElo "2413"]
[BlackElo "2038"]
[PlyCount "57"]
[EventDate "2025.02.12"]
[EventType "swiss"]
[EventCountry "ROU"]
[SourceTitle "playchess.com"]
[Source "ChessBase"]
[SourceQuality "1"]
[TimeControl "40/5400+30:900+30"]

1. e4 {[%emt 0:00:02]} e5 {[%emt 0:00:22]} 2. Nf3 {[%emt 0:00:05]} Nf6 {[%emt 0:00:03]} 3. Nxe5 {[%emt 0:00:12]} d6 {[%emt 0:00:04]} 4. Nf3 {[%emt 0:00:10]} Nxe4 {[%emt 0:00:04]} 5. Nc3 {[%emt 0:00:08]} Nf6 {[%emt 0:00:15]} 6. d4 {[%emt 0:00:52]} Be7 {[%emt 0:00:20]} 7. Bd3 {[%emt 0:04:17]} Nc6 {[%emt 0:02:39]} 8. h3 {[%emt 0:00:53]} Nb4 {[%emt 0:02:15]} 9. Bg5 {[%emt 0:03:25]} Be6 {[%emt 0:08:31]} 10. Be2 {[%emt 0:02:28]} Bf5 {[%emt 0:01:23]} 11. Rc1 {[%emt 0:00:14]} h6 {[%emt 0:01:20]} 12. Bh4 {[%emt 0:01:20]} O-O {[%emt 0:17:57]} 13. O-O {[%emt 0:04:04]} Nfd5 {[%emt 0:00:37]} 14. Nxd5 {[%emt 0:04:08]} Nxd5 {[%emt 0:00:05]} 15. Bg3 {[%emt 0:05:38]} Bg5 {[%emt 0:10:25]} 16. Nxg5 {[%emt 0:00:08]} Qxg5 {[%emt 0:00:02]} 17. Bf3 {[%emt 0:04:52]} Nb4 {[%emt 0:01:26]} 18. a3 {[%emt 0:02:23]} Nc6 {[%emt 0:00:05]} 19. c3 {[%emt 0:04:53]} Rfe8 {[%emt 0:03:46]} 20. Bxc6 {[%emt 0:04:32]} bxc6 {[%emt 0:00:08]} 21. Qf3 {[%emt 0:00:05]} Be4 {[%emt 0:01:12]} 22. Qf4 {[%emt 0:00:10]} Qd5 {[%emt 0:03:34]} 23. f3 {[%emt 0:00:56]} Bd3 {[%emt 0:00:28]} 24. Rfe1 {[%emt 0:00:22]} Qb3 {[%emt 0:01:31]} 25. Qd2 {[%emt 0:01:14]} Bg6 {[%emt 0:00:37]} 26. Rxe8+ {[%emt 0:01:43]} Rxe8 {[%emt 0:00:03]} 27. Re1 {[%emt 0:00:06]} Rxe1+ {[%emt 0:00:16]} 28. Bxe1 {[%emt 0:00:06]} a5 {[%emt 0:05:02]} 29. Bf2 {[%emt 0:01:13]} 1/2-1/2

[Event "Romanian Championship Open 2025"]
[Site "Craiova"]
[Date "2025.02.21"]
[Round "7.20"]
[White "Dobre, Claudiu-Cristian"]
[Black "Panc, Samuel"]
[Result "1-0"]
[Annotator "RC"]
[ECO "A87"]
[WhiteElo "2279"]
[BlackElo "2036"]
[PlyCount "78"]
[EventDate "2025.02.12"]
[EventType "swiss"]
[EventCountry "ROU"]
[SourceTitle "playchess.com"]
[Source "ChessBase"]
[SourceQuality "1"]
[TimeControl "40/5400+30:900+30"]

1. c4 {[%emt 0:00:03]} f5 {[%emt 0:00:04]} 2. Nf3 {[%emt 0:00:52]} Nf6 {[%emt 0:00:04]} 3. Nc3 {[%emt 0:00:21]} d6 {[%emt 0:01:33]} 4. d4 {[%emt 0:00:20]} g6 {[%emt 0:00:25]} 5. g3 {[%emt 0:05:33]} Bg7 {[%emt 0:00:34]} 6. Bg2 {[%emt 0:03:37]} O-O {[%emt 0:00:12]} 7. O-O {[%emt 0:00:32]} c6 {[%emt 0:00:11]} 8. Qb3 {[%emt 0:03:31]} Na6 {[%emt 0:00:08]} 9. Rd1 {[%emt 0:00:19]} Qe8 {[%emt 0:03:03]} 10. c5+ {[%emt 0:08:59]} Kh8 {[%emt 0:00:32]} 11. cxd6 {[%emt 0:03:08]} exd6 {[%emt 0:00:05]} 12. d5 {[%emt 0:03:48]} Nc5 {[%emt 0:24:08]} 13. Qa3 {[%emt 0:08:27]} Nce4 {[%emt 0:01:23]} 14. dxc6 {[%emt 0:18:16]} bxc6 {[%emt 0:01:06]} 15. Nd4 {[%emt 0:03:41]} Bb7 {[%emt 0:21:49]} 16. Nxe4 {[%emt 0:02:39]} Nxe4 {[%emt 0:00:27]} 17. f3 {[%emt 0:09:27]} Nc5 {[%emt 0:05:35]} 18. Bf4 {[%emt 0:01:20]} Rd8 {[%emt 0:10:10]} 19. Rac1 {[%emt 0:02:09]} Qe7 {[%emt 0:06:24]} 20. b4 {[%emt 0:07:29]} Ne6 {[%emt 0:06:50]} 21. Nxe6 Qxe6 {[%emt 0:00:01]} 22. Qxa7 {[%emt 0:03:00]} Rd7 {[%emt 0:02:19]} 23. Rd2 {[%emt 0:02:00]} Re8 {[%emt 0:09:35]} 24. Qb6 {[%emt 0:03:20]} h6 {[%emt 0:01:20]} 25. h4 {[%emt 0:01:35]} Qe7 {[%emt 0:01:52]} 26. Kf2 {[%emt 0:02:45]} d5 {[%emt 0:02:02]} 27. b5 {[%emt 0:03:57]} g5 {[%emt 0:01:07]} 28. hxg5 {[%emt 0:01:57]} hxg5 {[%emt 0:00:01]} 29. Rh1+ {[%emt 0:00:33]} Kg8 {[%emt 0:00:03]} 30. bxc6 {[%emt 0:00:26]} Bxc6 {[%emt 0:00:09]} 31. Qxc6 {[%emt 0:01:20]} gxf4 {[%emt 0:00:08]} 32. Rc2 {[%emt 0:00:34]} Rd6 {[%emt 0:02:10]} 33. Qc5 {[%emt 0:00:19]} fxg3+ {[%emt 0:00:14]} 34. Kg1 {[%emt 0:00:25]} d4 {[%emt 0:00:58]} 35. Qc4+ {[%emt 0:00:20]} Kf8 {[%emt 0:00:41]} 36. Qd3 {[%emt 0:00:52]} Qf7 {[%emt 0:00:33]} 37. Rc5 {[%emt 0:00:33]} Rd5 {[%emt 0:00:31]} 38. Rxd5 {[%emt 0:00:14]} Qxd5 {[%emt 0:00:04]} 39. Rh5 {[%emt 0:00:02]} Qe5 {[%emt 0:01:29]} 1-0

[Event "Romanian Championship Open 2025"]
[Site "Craiova"]
[Date "2025.02.21"]
[Round "7.21"]
[White "Barbu, Simon-Alexandru"]
[Black "Lucaci, Alin-Marian"]
[Result "1-0"]
[Annotator "ChessBase"]
[ECO "C45"]
[WhiteElo "2023"]
[BlackElo "2137"]
[PlyCount "137"]
[EventDate "2025.02.12"]
[EventType "swiss"]
[EventCountry "ROU"]
[SourceTitle "playchess.com"]
[Source "ChessBase"]
[SourceQuality "1"]
[TimeControl "40/5400+30:900+30"]

1. e4 {[%emt 0:00:09]} e5 {[%emt 0:00:06]} 2. Nf3 {[%emt 0:00:19]} Nc6 {[%emt 0:00:05]} 3. d4 {[%emt 0:00:11]} exd4 {[%emt 0:00:06]} 4. Nxd4 {[%emt 0:00:10]} Bc5 {[%emt 0:00:05]} 5. Nb3 {[%emt 0:00:07]} Bb6 {[%emt 0:00:07]} 6. Nc3 {[%emt 0:00:10]} Qf6 {[%emt 0:01:36]} 7. Qe2 {[%emt 0:02:40]} Nge7 {[%emt 0:01:27]} 8. Be3 {[%emt 0:01:19]} d6 {[%emt 0:07:21]} 9. O-O-O {[%emt 0:20:00]} Bd7 {[%emt 0:05:19]} 10. Nd5 {[%emt 0:16:06]} Nxd5 {[%emt 0:01:32]} 11. exd5 {[%emt 0:00:18]} Ne7 {[%emt 0:03:02]} 12. Re1 {[%emt 0:01:12]} Kf8 {[%emt 0:06:23]} 13. Qd2 {[%emt 0:02:11]} Bxe3 {[%emt 0:04:38]} 14. Rxe3 {[%emt 0:00:26]} g6 {[%emt 0:08:49]} 15. Bc4 {[%emt 0:09:02]} b5 {[%emt 0:06:43]} 16. Rf3 {[%emt 0:01:51]} Qg7 {[%emt 0:00:46]} 17. Bd3 {[%emt 0:09:53]} h5 {[%emt 0:06:32]} 18. Qa5 {[%emt 0:11:43]} Bg4 {[%emt 0:10:48]} 19. Rg3 {[%emt 0:05:24]} Nxd5 {[%emt 0:03:24]} 20. Bxb5 {[%emt 0:03:24]} Nb6 {[%emt 0:03:49]} 21. Re1 {[%emt 0:02:30]} Qf6 {[%emt 0:01:45]} 22. h3 {[%emt 0:01:34]} Bf5 {[%emt 0:00:52]} 23. Qd2 {[%emt 0:01:33]} a6 {[%emt 0:08:17]} 24. Bc6 {[%emt 0:00:21]} Rb8 {[%emt 0:00:18]} 25. Nd4 {[%emt 0:00:05]} h4 {[%emt 0:04:46]} 26. Qc3 {[%emt 0:03:43]} Qg7 {[%emt 0:02:42]} 27. Rf3 {[%emt 0:03:39]} Rh5 {[%emt 0:00:28]} 28. Kb1 {[%emt 0:02:27]} d5 {[%emt 0:02:25]} 29. Rfe3 {[%emt 0:00:50]} Kg8 {[%emt 0:01:07]} 30. b3 {[%emt 0:00:57]} Rg5 {[%emt 0:02:03]} 31. Nxf5 {[%emt 0:00:45]} Rxf5 {[%emt 0:00:39]} 32. Re8+ {[%emt 0:00:30]} Rxe8 {[%emt 0:00:08]} 33. Rxe8+ {[%emt 0:00:01]} Kh7 {[%emt 0:00:12]} 34. Qxg7+ {[%emt 0:00:26]} Kxg7 {[%emt 0:00:08]} 35. a4 {[%emt 0:00:40]} a5 {[%emt 0:00:34]} 36. f3 {[%emt 0:00:53]} Rf6 {[%emt 0:00:49]} 37. Bb5 {[%emt 0:00:30]} Re6 {[%emt 0:00:30]} 38. Rb8 {[%emt 0:00:55]} Kf6 {[%emt 0:04:15]} 39. b4 {[%emt 0:00:30]} axb4 {[%emt 0:00:09]} 40. a5 {[%emt 0:00:00]} Nc4 {[%emt 0:00:00]} 41. Bxc4 {[%emt 0:03:53]} dxc4 {[%emt 0:00:29]} 42. Rxb4 {[%emt 0:02:10]} Ra6 {[%emt 0:03:53]} 43. Rxc4 {[%emt 0:05:26]} Rxa5 {[%emt 0:03:43]} 44. Rxh4 {[%emt 0:03:26]} Rc5 {[%emt 0:02:44]} 45. Kb2 {[%emt 0:00:47]} Ke6 {[%emt 0:00:20]} 46. Kb3 {[%emt 0:00:10]} Rd5 {[%emt 0:02:12]} 47. Kc3 {[%emt 0:00:35]} Ra5 {[%emt 0:01:13]} 48. Re4+ {[%emt 0:00:42]} Kd6 {[%emt 0:00:44]} 49. Rd4+ {[%emt 0:00:05]} Ke6 {[%emt 0:00:24]} 50. h4 {[%emt 0:01:56]} Rb5 {[%emt 0:01:36]} 51. Kc4 {[%emt 0:00:20]} Rh5 {[%emt 0:01:29]} 52. g3 {[%emt 0:00:37]} Ra5 {[%emt 0:02:57]} 53. Rd2 {[%emt 0:00:30]} Rf5 {[%emt 0:02:00]} 54. f4 {[%emt 0:00:55]} Rh5 {[%emt 0:01:42]} 55. Kb4 {[%emt 0:00:15]} Rf5 {[%emt 0:01:19]} 56. c4 {[%emt 0:00:15]} Ke7 {[%emt 0:00:38]} 57. c5 {[%emt 0:00:55]} Rf6 {[%emt 0:00:32]} 58. Kb5 {[%emt 0:00:06]} Re6 {[%emt 0:00:57]} 59. Rd3 {[%emt 0:00:33]} f5 {[%emt 0:00:27]} 60. Kc4 {[%emt 0:01:28]} Re4+ {[%emt 0:00:33]} 61. Kb5 {[%emt 0:00:30]} Re6 {[%emt 0:00:05]} 62. c6 {[%emt 0:00:50]} Rd6 {[%emt 0:00:07]} 63. Re3+ {[%emt 0:00:05]} Kd8 {[%emt 0:01:24]} 64. Kc5 {[%emt 0:00:11]} Rd1 {[%emt 0:00:33]} 65. Re6 {[%emt 0:00:23]} Rc1+ {[%emt 0:00:10]} 66. Kd5 {[%emt 0:00:04]} Rd1+ {[%emt 0:00:15]} 67. Ke5 {[%emt 0:00:11]} Re1+ {[%emt 0:00:40]} 68. Kf6 {[%emt 0:00:04]} Rg1 {[%emt 0:00:37]} 69. Kf7 {[%emt 0:00:05]} 1-0